fUST/lending_fUST_20250605
["ID","MTS","AMOUNT","RATE_DAILY","PERIOD"]
[364305136,1749064236256,-977.4,0.00021111,2]
[364305137,1749064236266,-431.44833999,0.00021112,2]
[364305138,1749064236275,-440.0,0.00021112,2]
[364305139,1749064236285,-1200.0,0.00021164,2]
[364305140,1749064236294,-1184.69,0.0002117,2]
[364305141,1749064236303,-1075.48,0.0002117,2]
[364305142,1749064236312,-440.0,0.0002117,2]
[364305143,1749064236321,-430.0,0.0002117,2]
[364305144,1749064236331,-440.0,0.0002117,2]
[364305145,1749064236341,-440.0,0.0002117,2]
[364305146,1749064236350,-440.0,0.0002117,2]
[364305147,1749064236359,-440.0,0.0002117,2]
[364305148,1749064236368,-440.0,0.0002117,2]
[364305149,1749064236377,-440.0,0.0002117,2]
[364305150,1749064236387,-440.0,0.0002117,2]
[364305151,1749064236396,-440.0,0.0002117,2]
[364305152,1749064236405,-420.0,0.00021171,2]
[364305153,1749064236414,-440.0,0.00021171,2]
[364305154,1749064236423,-440.0,0.00021171,2]
[364305155,1749064236433,-360.0,0.00021171,2]
[364305156,1749064236442,-440.0,0.00021171,2]
[364305157,1749064236451,-173.07892128,0.00021171,2]
[364305158,1749064236460,-440.0,0.00021171,2]
[364305159,1749064236470,-382.11930906,0.00021171,2]
[364305160,1749064236480,-397.58745214,0.00021171,2]
[364305161,1749064236495,-515.45,0.00021171,2]
[364305162,1749064236505,-440.0,0.00021171,2]
[364305163,1749064236514,-440.0,0.00021171,2]
[364305164,1749064236524,-440.0,0.00021171,2]
[364305165,1749064236535,-440.0,0.00021171,2]
[364305166,1749064236546,-440.0,0.00021171,2]
[364305167,1749064236556,-440.0,0.00021171,2]
[364305168,1749064236567,-440.0,0.00021171,2]
[364305169,1749064236579,-440.0,0.00021171,2]
[364305170,1749064236589,-440.0,0.00021171,2]
[364305171,1749064236598,-440.0,0.00021171,2]
[364305172,1749064236608,-440.0,0.00021171,2]
[364305173,1749064236617,-440.0,0.00021171,2]
[364305174,1749064236627,-440.0,0.00021171,2]
[364305175,1749064236638,-440.0,0.00021171,2]
[364305176,1749064236648,-440.0,0.00021171,2]
[364305177,1749064236657,-420.0,0.00021171,2]
[364305178,1749064236667,-160.94,0.00021171,2]
[364305179,1749064236678,-420.0,0.00021171,2]
[364305180,1749064236687,-440.0,0.00021171,2]
[364305181,1749064236696,-420.0,0.00021171,2]
[364305182,1749064236706,-420.0,0.00021171,2]
[364305183,1749064236716,-440.0,0.00021171,2]
[364305184,1749064236725,-440.0,0.00021171,2]
[364305185,1749064236735,-420.0,0.00021171,2]
[364305186,1749064236744,-420.0,0.00021171,2]
[364305187,1749064236757,-375.44,0.000212,2]
[364305188,1749064236767,-2438.48,0.00021203,2]
[364305189,1749064236776,-440.0,0.00021203,2]
[364305190,1749064236786,-440.0,0.00021203,2]
[364305191,1749064236795,-726.61,0.00021203,2]
[364305192,1749064236808,-712.76,0.00021203,2]
[364305193,1749064236817,-440.0,0.00021203,2]
[364305194,1749064236828,-230.63708724,0.00021218,2]
[364305195,1749064236839,-2342.15275744,0.00021279,5]
[364305196,1749064236848,-420.0,0.00021288,2]
[364305197,1749064236858,-984.19,0.00021375,3]
[364305198,1749064236868,-492.1,0.00021375,3]
[364305199,1749064236879,-246.05,0.00021375,3]
[364305200,1749064236889,-738.16,0.00021375,3]
[364305201,1749064236899,-500.0,0.00021383,2]
[364305202,1749064236908,-609.47,0.00021383,2]
[364305203,1749064236917,-500.0,0.00021384,2]
[364305204,1749064236926,-500.0,0.00021384,2]
[364305205,1749064236936,-500.0,0.00021384,2]
[364305206,1749064236945,-500.0,0.00021384,2]
[364305207,1749064236955,-440.0,0.00021384,2]
[364305208,1749064236964,-609.47,0.00021384,2]
[364305209,1749064236974,-609.47,0.00021384,2]
[364305210,1749064236983,-609.47,0.00021384,2]
[364305211,1749064236993,-985.64,0.00021384,2]
[364305212,1749064237002,-430.0,0.00021384,2]
[364305213,1749064237012,-1546.63,0.00021384,2]
[364305214,1749064237022,-485.7,0.00021384,2]
[364305215,1749064237031,-440.0,0.00021384,2]
[364305216,1749064237041,-430.0,0.00021384,2]
[364305217,1749064237050,-560.05246261,0.00021385,2]
[364305218,1749064237060,-440.0,0.00021385,2]
[364305219,1749064237069,-440.0,0.00021385,2]
[364305220,1749064237079,-440.0,0.00021385,2]
[364305221,1749064237089,-440.0,0.00021385,2]
[364305222,1749064237098,-440.0,0.00021385,2]
[364305223,1749064237107,-440.0,0.00021385,2]
[364305224,1749064237116,-440.0,0.00021385,2]
[364305225,1749064237126,-440.0,0.00021385,2]
[364305226,1749064237135,-440.0,0.00021385,2]
[364305227,1749064237145,-440.0,0.00021385,2]
[364305228,1749064237155,-410.0,0.00021385,2]
[364305229,1749064237164,-423.73455394,0.00021385,2]
[364305230,1749064237173,-474.19,0.00021385,2]
[364305231,1749064237183,-440.0,0.00021385,2]
[364305232,1749064237192,-445.04,0.00021385,2]
[364305233,1749064237201,-1248.16,0.00021385,2]
[364305234,1749064237211,-440.0,0.00021385,2]
[364305235,1749064237221,-440.0,0.00021385,2]
[364305236,1749064237230,-440.0,0.00021385,2]
[364305237,1749064237240,-957.89,0.00021385,2]
[364305238,1749064237249,-440.0,0.00021385,2]
[364305239,1749064237258,-465.53,0.00021385,2]
[364305240,1749064237267,-440.0,0.00021385,2]
[364305241,1749064237276,-440.0,0.00021385,2]
[364305242,1749064237285,-440.0,0.00021385,2]
[364305243,1749064237294,-440.0,0.00021385,2]
[364305244,1749064237303,-440.0,0.00021385,2]
[364305245,1749064237312,-977.4,0.00021385,2]
[364305246,1749064237320,-151.38444775,0.00021391,2]
[364305247,1749064237330,-151.0,0.00021391,2]
[364305248,1749064237340,-151.0,0.00021391,2]
[364305249,1749064237349,-151.0,0.00021391,2]
[364305250,1749064237358,-151.31320155,0.00021391,2]
[364305251,1749064237368,-225.65543947,0.00021391,2]
[364305252,1749064237377,-270.66463338,0.00021391,2]
[364305253,1749064237387,-151.0,0.00021391,2]
[364305254,1749064237396,-151.0,0.00021391,2]
[364305255,1749064237407,-151.0,0.00021391,2]
[364305256,1749064237418,-500.0,0.00021391,2]
[364305257,1749064237427,-151.0,0.00021391,2]
[364305258,1749064237438,-151.0,0.00021391,2]
[364305259,1749064237449,-500.0,0.00021391,2]
[364305260,1749064237459,-500.0,0.00021391,2]
[364305261,1749064237470,-500.0,0.00021391,2]
[364305262,1749064237481,-500.0,0.00021391,2]
[364305263,1749064237496,-151.0,0.00021391,2]
[364305264,1749064237510,-151.0,0.00021391,2]
[364305265,1749064237521,-500.0,0.00021391,2]
[364305266,1749064237530,-500.0,0.00021391,2]
[364305267,1749064237542,-151.0,0.00021391,2]
[364305268,1749064237551,-151.0,0.00021391,2]
[364305269,1749064237561,-151.0,0.00021391,2]
[364305270,1749064237571,-230.39526265,0.00021391,2]
[364305271,1749064237582,-166.916959,0.00021404,2]
[364305272,1749064237592,-500.0,0.00021418,2]
[364305273,1749064237601,-152.87098,0.00021418,2]
[364305274,1749064237611,-151.0,0.00021418,2]
[364305275,1749064237620,-500.0,0.00021418,2]
[364305277,1749064237630,-500.0,0.00021418,2]
[364305278,1749064237639,-501.45084009,0.00021418,2]
[364305280,1749064237648,-151.0,0.00021418,2]
[364305282,1749064237657,-151.0,0.00021418,2]
[364305284,1749064237666,-151.0,0.00021418,2]
[364305287,1749064237675,-203.45416118,0.00021437,2]
[364305291,1749064237685,-166.0,0.00021437,2]
[364305294,1749064237695,-166.0,0.00021437,2]
[364305297,1749064237704,-166.0,0.00021437,2]
[364305300,1749064237713,-166.0,0.00021437,2]
[364305303,1749064237723,-166.0,0.00021437,2]
[364305305,1749064237732,-166.0,0.00021437,2]
[364305307,1749064237741,-166.0,0.00021437,2]
[364305310,1749064237750,-1742.0,0.00021437,2]
[364305314,1749064237761,-166.0,0.00021437,2]
[364305318,1749064237770,-166.0,0.00021437,2]
[364305322,1749064237779,-1742.0,0.00021437,2]
[364305326,1749064237789,-166.0,0.00021437,2]
[364305330,1749064237798,-166.0,0.00021437,2]
[364305334,1749064237807,-1799.94458443,0.00021437,2]
[364305337,1749064237817,-166.0,0.00021437,2]
[364305340,1749064237827,-172.0,0.00021437,2]
[364305344,1749064237836,-151.0,0.00021437,2]
[364305347,1749064237846,-166.0,0.00021437,2]
[364305350,1749064237855,-1742.0,0.00021437,2]
[364305353,1749064237865,-1742.0,0.00021437,2]
[364305356,1749064237874,-166.0,0.00021437,2]
[364305359,1749064237883,-316.0,0.00021437,2]
[364305362,1749064237893,-332.01746828,0.00021437,2]
[364305365,1749064237903,-516.15754345,0.00021437,2]
[364305368,1749064237912,-1184.69,0.00021444,2]
[364305371,1749064237923,-1075.48,0.00021444,2]
[364305374,1749064237932,-440.0,0.00021444,2]
[364305376,1749064237942,-440.0,0.00021444,2]
[364305378,1749064237952,-440.0,0.00021444,2]
[364305380,1749064237962,-440.0,0.00021444,2]
[364305382,1749064237971,-440.0,0.00021444,2]
[364305384,1749064237980,-440.0,0.00021444,2]
[364305386,1749064237989,-440.0,0.00021444,2]
[364305388,1749064237999,-440.0,0.00021444,2]
[364305390,1749064238008,-440.0,0.00021444,2]
[364305392,1749064238017,-412.38,0.00021445,2]
[364305394,1749064238027,-440.0,0.00021445,2]
[364305396,1749064238036,-440.0,0.00021445,2]
[364305398,1749064238045,-360.0,0.00021445,2]
[364305400,1749064238055,-515.45,0.00021445,2]
[364305402,1749064238064,-440.0,0.00021445,2]
[364305404,1749064238073,-440.0,0.00021445,2]
[364305406,1749064238083,-440.0,0.00021445,2]
[364305408,1749064238093,-440.0,0.00021445,2]
[364305410,1749064238102,-440.0,0.00021445,2]
[364305412,1749064238111,-440.0,0.00021445,2]
[364305414,1749064238120,-440.0,0.00021445,2]
[364305416,1749064238130,-440.0,0.00021445,2]
[364305418,1749064238139,-440.0,0.00021445,2]
[364305420,1749064238148,-440.0,0.00021445,2]
[364305422,1749064238158,-440.0,0.00021445,2]
[364305424,1749064238167,-440.0,0.00021445,2]
[364305426,1749064238177,-350.0,0.00021445,2]
[364305428,1749064238185,-440.0,0.00021445,2]
[364305430,1749064238195,-440.0,0.00021445,2]
[364305432,1749064238204,-440.0,0.00021445,2]
[364305434,1749064238213,-440.0,0.00021445,2]
[364305437,1749064238223,-440.0,0.00021445,2]
[364305439,1749064238232,-173.70319592,0.00021446,2]
[364305441,1749064238241,-151.0,0.00021446,2]
[364305443,1749064238251,-500.0,0.00021446,2]
[364305446,1749064238260,-500.0,0.00021446,2]
[364305448,1749064238269,-151.0,0.00021446,2]
[364305450,1749064238278,-2342.15275744,0.00021452,5]
[364305452,1749064238288,-151.0,0.00021473,2]
[364305454,1749064238298,-500.0,0.00021473,2]
[364305456,1749064238307,-2438.48,0.00021477,2]
[364305459,1749064238317,-440.0,0.00021477,2]
[364305461,1749064238326,-440.0,0.00021477,2]
[364305463,1749064238336,-726.61,0.00021477,2]
[364305465,1749064238346,-712.76,0.00021477,2]
[364305468,1749064238356,-440.0,0.00021477,2]
[364305469,1749064238366,-199.00046439,0.00021501,2]
[364305471,1749064238376,-500.0,0.00021501,2]
[364305473,1749064238385,-526.43422345,0.00021528,2]
[364305475,1749064238395,-752.24,0.00021537,2]
[364305477,1749064238404,-2342.15275744,0.00021624,5]
[364305479,1749064238414,-752.24,0.00021637,2]
[364305481,1749064238423,-500.0,0.00021657,2]
[364305483,1749064238432,-609.47,0.00021657,2]
[364305485,1749064238442,-430.0,0.00021658,2]
[364305487,1749064238451,-985.64,0.00021658,2]
[364305489,1749064238461,-1546.63,0.00021658,2]
[364305491,1749064238470,-485.7,0.00021658,2]
[364305493,1749064238480,-440.0,0.00021658,2]
[364305504,1749064238581,-440.0,0.00021659,2]
[364305506,1749064238592,-440.0,0.00021659,2]
[364305508,1749064238601,-440.0,0.00021659,2]
[364305510,1749064238610,-440.0,0.00021659,2]
[364305512,1749064238620,-440.0,0.00021659,2]
[364305514,1749064238629,-440.0,0.00021659,2]
[364305516,1749064238639,-500.0,0.00021659,2]
[364305518,1749064238649,-373.43060188,0.00021659,2]
[364305520,1749064238658,-440.0,0.00021659,2]
[364305522,1749064238667,-474.19,0.00021659,2]
[364305524,1749064238677,-440.0,0.00021659,2]
[364305526,1749064238686,-609.47,0.00021659,2]
[364305528,1749064238695,-445.04,0.00021659,2]
[364305530,1749064238705,-1248.16,0.00021659,2]
[364305532,1749064238714,-440.0,0.00021659,2]
[364305534,1749064238723,-440.0,0.00021659,2]
[364305536,1749064238732,-957.89,0.00021659,2]
[364305538,1749064238741,-465.53,0.00021659,2]
[364305540,1749064238750,-440.0,0.00021659,2]
[364305542,1749064238761,-440.0,0.00021659,2]
[364305544,1749064238770,-410.0,0.00021659,2]
[364305546,1749064238779,-440.0,0.00021659,2]
[364305548,1749064238789,-440.0,0.00021659,2]
[364305550,1749064238799,-977.4,0.00021659,2]
[364305552,1749064238808,-1184.69,0.00021718,2]
[364305554,1749064238818,-1075.48,0.00021718,2]
[364305556,1749064238827,-440.0,0.00021718,2]
[364305558,1749064238836,-440.0,0.00021718,2]
[364305560,1749064238845,-440.0,0.00021718,2]
[364305562,1749064238854,-440.0,0.00021718,2]
[364305564,1749064238863,-440.0,0.00021718,2]
[364305566,1749064238872,-430.0,0.00021718,2]
[364305568,1749064238882,-440.0,0.00021718,2]
[364305570,1749064238891,-440.0,0.00021718,2]
[364305572,1749064238900,-440.0,0.00021718,2]
[364305574,1749064238909,-350.0,0.00021719,2]
[364305576,1749064238918,-440.0,0.00021719,2]
[364305578,1749064238927,-515.45,0.00021719,2]
[364305580,1749064238936,-305.95460126,0.00021719,2]
[364305582,1749064238945,-440.0,0.00021719,2]
[364305584,1749064238956,-440.0,0.00021719,2]
[364305586,1749064238966,-440.0,0.00021719,2]
[364305588,1749064238975,-440.0,0.00021719,2]
[364305590,1749064238985,-330.0,0.00021719,2]
[364305592,1749064238994,-533.01760006,0.00021719,2]
[364305594,1749064239003,-440.0,0.00021719,2]
[364305596,1749064239013,-440.0,0.00021719,2]
[364305598,1749064239022,-440.0,0.00021719,2]
[364305600,1749064239032,-440.0,0.00021719,2]
[364305602,1749064239041,-440.0,0.00021719,2]
[364305604,1749064239050,-440.0,0.00021719,2]
[364305606,1749064239059,-440.0,0.00021719,2]
[364305608,1749064239069,-440.0,0.00021719,2]
[364305609,1749064239078,-440.0,0.00021719,2]
[364305611,1749064239087,-416.68046993,0.00021719,2]
[364305613,1749064239096,-752.24,0.00021737,2]
[364305615,1749064239106,-2438.48,0.00021751,2]
[364305617,1749064239115,-440.0,0.00021751,2]
[364305619,1749064239124,-440.0,0.00021751,2]
[364305621,1749064239134,-726.61,0.00021751,2]
[364305623,1749064239143,-712.76,0.00021751,2]
[364305625,1749064239153,-449.26,0.00021751,2]
[364305627,1749064239162,-2342.15275744,0.00021797,6]
[364305629,1749064239171,-752.24,0.00021837,2]
[364305631,1749064239181,-206.0,0.0002189,2]
[364305633,1749064239190,-500.0,0.00021917,2]
[364305635,1749064239199,-156.4012772,0.00021918,2]
[364305637,1749064239209,-609.47,0.00021932,2]
[364305639,1749064239218,-985.64,0.00021932,2]
[364305641,1749064239228,-1546.63,0.00021932,2]
[364305643,1749064239237,-485.7,0.00021932,2]
[364305645,1749064239247,-357.20016576,0.00021932,2]
[364305647,1749064239257,-440.0,0.00021933,2]
[364305649,1749064239266,-440.0,0.00021933,2]
[364305651,1749064239276,-440.0,0.00021933,2]
[364305653,1749064239285,-440.0,0.00021933,2]
[364305655,1749064239295,-440.0,0.00021933,2]
[364305657,1749064239304,-440.0,0.00021933,2]
[364305659,1749064239313,-440.0,0.00021933,2]
[364305661,1749064239322,-474.19,0.00021933,2]
[364305663,1749064239332,-445.04,0.00021933,2]
[364305665,1749064239342,-1248.16,0.00021933,2]
[364305667,1749064239352,-440.0,0.00021933,2]
[364305669,1749064239361,-440.0,0.00021933,2]
[364305671,1749064239372,-957.89,0.00021933,2]
[364305673,1749064239382,-465.53,0.00021933,2]
[364305675,1749064239392,-430.0,0.00021933,2]
[364305677,1749064239402,-440.0,0.00021933,2]
[364305679,1749064239411,-430.0,0.00021933,2]
[364305683,1749064239432,-440.0,0.00021933,2]
[364305685,1749064239442,-977.4,0.00021933,2]
[364305687,1749064239452,-752.24,0.00021937,3]
[364305689,1749064239462,-2342.15275744,0.00021969,6]
[364305691,1749064239472,-1184.69,0.00021992,2]
[364305693,1749064239482,-1075.48,0.00021992,2]
[364305695,1749064239494,-440.0,0.00021992,2]
[364305697,1749064239504,-440.0,0.00021992,2]
[364305699,1749064239514,-440.0,0.00021992,2]
[364305701,1749064239524,-430.0,0.00021992,2]
[364305703,1749064239534,-440.0,0.00021992,2]
[364305705,1749064239545,-440.0,0.00021992,2]
[364305707,1749064239554,-440.0,0.00021992,2]
[364305709,1749064239565,-440.0,0.00021992,2]
[364305711,1749064239575,-440.0,0.00021993,2]
[364305713,1749064239585,-515.45,0.00021993,2]
[364305715,1749064239595,-440.0,0.00021993,2]
[364305718,1749064239605,-440.0,0.00021993,2]
[364305720,1749064239615,-440.0,0.00021993,2]
[364305722,1749064239624,-440.0,0.00021993,2]
[364305724,1749064239634,-440.0,0.00021993,2]
[364305726,1749064239644,-440.0,0.00021993,2]
[364305728,1749064239655,-440.0,0.00021993,2]
[364305730,1749064239664,-423.89,0.00021993,2]
[364305732,1749064239674,-430.0,0.00021993,2]
[364305735,1749064239684,-440.0,0.00021993,2]
[364305737,1749064239693,-440.0,0.00021993,2]
[364305740,1749064239702,-440.0,0.00021993,2]
[364305742,1749064239714,-440.0,0.00021993,2]
[364305744,1749064239724,-993.69,0.00022,7]
[364305746,1749064239734,-2438.48,0.00022025,2]
[364305748,1749064239744,-390.0,0.00022025,2]
[364305750,1749064239754,-440.0,0.00022025,2]
[364305752,1749064239764,-726.61,0.00022025,2]
[364305754,1749064239773,-712.76,0.00022025,2]
[364305756,1749064239783,-752.24,0.00022037,4]
[364305759,1749064239793,-151.0,0.00022062,2]
[364305761,1749064239802,-207.4,0.00022062,2]
[364305763,1749064239812,-151.0,0.00022062,2]
[364305765,1749064239821,-500.0,0.00022062,2]
[364305767,1749064239830,-500.0,0.00022062,2]
[364305769,1749064239839,-500.0,0.00022062,2]
[364305771,1749064239848,-500.0,0.00022062,2]
[364305773,1749064239858,-500.0,0.00022062,2]
[364305775,1749064239868,-500.0,0.00022062,2]
[364305777,1749064239878,-500.0,0.00022062,2]
[364305779,1749064239889,-5000.0,0.00022062,2]
[364305781,1749064239899,-500.0,0.00022062,2]
[364305783,1749064239909,-500.0,0.00022062,2]
[364305785,1749064239919,-500.0,0.00022062,2]
[364305787,1749064239928,-500.0,0.00022062,2]
[364305789,1749064239937,-500.0,0.00022062,2]
[364305791,1749064239946,-500.0,0.00022062,2]
[364305793,1749064239955,-500.0,0.00022062,2]
[364305795,1749064239964,-500.0,0.00022062,2]
[364305797,1749064239974,-500.0,0.00022062,2]
[364305800,1749064239983,-752.24,0.00022137,2]
[364305802,1749064239993,-2342.15275744,0.00022141,6]
[364305804,1749064240002,-206.0,0.0002217,2]
[364305806,1749064240011,-609.47,0.00022205,2]
[364305808,1749064240020,-985.64,0.00022206,2]
[364305810,1749064240030,-1546.63,0.00022206,2]
[364305812,1749064240039,-485.7,0.00022206,2]
[364305814,1749064240050,-440.0,0.00022207,2]
[364305816,1749064240059,-440.0,0.00022207,2]
[364305818,1749064240068,-440.0,0.00022207,2]
[364305820,1749064240079,-440.0,0.00022207,2]
[364305822,1749064240088,-440.0,0.00022207,2]
[364305824,1749064240098,-440.0,0.00022207,2]
[364305826,1749064240107,-440.0,0.00022207,2]
[364305828,1749064240117,-474.19,0.00022207,2]
[364305830,1749064240127,-445.04,0.00022207,2]
[364305832,1749064240137,-1248.16,0.00022207,2]
[364305834,1749064240146,-440.0,0.00022207,2]
[364305836,1749064240156,-440.0,0.00022207,2]
[364305838,1749064240165,-957.89,0.00022207,2]
[364305839,1749064240175,-465.53,0.00022207,2]
[364305840,1749064240186,-440.0,0.00022207,2]
[364305842,1749064240196,-440.0,0.00022207,2]
[364305844,1749064240206,-977.4,0.00022207,2]
[364305846,1749064240216,-609.47,0.00022236,2]
[364305848,1749064240225,-752.24,0.00022237,4]
[364305850,1749064240235,-526.43422345,0.0002226,2]
[364305852,1749064240246,-1200.0,0.0002226,2]
[364305854,1749064240255,-1184.69,0.00022266,2]
[364305856,1749064240266,-1075.48,0.00022266,2]
[364305858,1749064240275,-440.0,0.00022266,2]
[364305860,1749064240284,-440.0,0.00022266,2]
[364305861,1749064240293,-440.0,0.00022266,2]
[364305863,1749064240302,-440.0,0.00022266,2]
[364305865,1749064240312,-440.0,0.00022266,2]
[364305867,1749064240321,-440.0,0.00022266,2]
[364305869,1749064240331,-440.0,0.00022266,2]
[364305871,1749064240341,-440.0,0.00022267,2]
[364305873,1749064240351,-515.45,0.00022267,2]
[364305875,1749064240360,-332.64,0.00022267,2]
[364305877,1749064240370,-440.0,0.00022267,2]
[364305879,1749064240380,-440.0,0.00022267,2]
[364305881,1749064240389,-440.0,0.00022267,2]
[364305883,1749064240399,-440.0,0.00022267,2]
[364305885,1749064240408,-440.0,0.00022267,2]
[364305888,1749064240417,-440.0,0.00022267,2]
[364305890,1749064240427,-440.0,0.00022267,2]
[364305892,1749064240436,-420.0,0.00022267,2]
[364305894,1749064240447,-440.0,0.00022267,2]
[364305896,1749064240456,-440.0,0.00022267,2]
[364305898,1749064240465,-160.0,0.00022297,2]
[364305900,1749064240474,-2438.48,0.00022299,2]
[364305902,1749064240484,-440.0,0.00022299,2]
[364305904,1749064240501,-726.61,0.00022299,2]
[364305906,1749064240510,-712.76,0.00022299,2]
[364305908,1749064240520,-2342.15275744,0.00022314,7]
[364305911,1749064240531,-540.41710014,0.00022325,2]
[364305913,1749064240540,-501.06523105,0.00022325,2]
[364305915,1749064240550,-500.0,0.00022325,2]
[364305917,1749064240559,-505.86713011,0.00022325,2]
[364305919,1749064240569,-500.0,0.00022325,2]
[364305921,1749064240578,-609.47,0.00022336,2]
[364305924,1749064240588,-752.24,0.00022337,7]
[364305926,1749064240597,-375.44,0.000224,7]
[364305929,1749064240606,-752.24,0.00022437,7]
[364305932,1749064240615,-206.0,0.0002246,2]
[364305935,1749064240625,-500.0,0.00022465,2]
[364305939,1749064240635,-985.64,0.0002248,2]
[364305942,1749064240644,-1546.63,0.0002248,2]
[364305945,1749064240653,-485.7,0.0002248,2]
[364305947,1749064240663,-512.15875897,0.00022481,2]
[364305949,1749064240672,-440.0,0.00022481,2]
[364305951,1749064240682,-440.0,0.00022481,2]
[364305953,1749064240691,-440.0,0.00022481,2]
[364305955,1749064240701,-440.0,0.00022481,2]
[364305958,1749064240710,-380.0,0.00022481,2]
[364305960,1749064240720,-440.0,0.00022481,2]
[364305962,1749064240729,-474.19,0.00022481,2]
[364305964,1749064240738,-445.04,0.00022481,2]
[364305966,1749064240748,-609.47,0.00022481,2]
[364305968,1749064240758,-1248.16,0.00022481,2]
[364305970,1749064240767,-440.0,0.00022481,2]
[364305972,1749064240777,-440.0,0.00022481,2]
[364305974,1749064240786,-957.89,0.00022481,2]
[364305976,1749064240795,-465.53,0.00022481,2]
[364305978,1749064240805,-440.0,0.00022481,2]
[364305980,1749064240815,-440.0,0.00022481,2]
[364305982,1749064240824,-977.4,0.00022481,2]
[364305984,1749064240834,-2342.15275744,0.00022486,7]
[364305986,1749064240843,-752.24,0.00022537,7]
[364305988,1749064240853,-1184.69,0.0002254,2]
[364305990,1749064240862,-1075.48,0.0002254,2]
[364305992,1749064240871,-440.0,0.0002254,2]
[364305994,1749064240881,-440.0,0.0002254,2]
[364305996,1749064240891,-440.0,0.0002254,2]
[364305998,1749064240900,-440.0,0.0002254,2]
[364306000,1749064240910,-440.0,0.0002254,2]
[364306002,1749064240919,-440.0,0.0002254,2]
[364306006,1749064241048,-440.0,0.0002254,2]
[364306007,1749064241059,-440.0,0.00022541,2]
[364306008,1749064241068,-515.45,0.00022541,2]
[364306009,1749064241077,-440.0,0.00022541,2]
[364306010,1749064241086,-440.0,0.00022541,2]
[364306011,1749064241097,-440.0,0.00022541,2]
[364306013,1749064241107,-440.0,0.00022541,2]
[364306015,1749064241116,-440.0,0.00022541,2]
[364306017,1749064241126,-440.0,0.00022541,2]
[364306018,1749064241136,-440.0,0.00022541,2]
[364306020,1749064241145,-440.0,0.00022541,2]
[364306022,1749064241154,-440.0,0.00022541,2]
[364306024,1749064241164,-2438.48,0.00022573,2]
[364306026,1749064241173,-440.0,0.00022573,2]
[364306028,1749064241182,-726.61,0.00022573,2]
[364306030,1749064241192,-712.76,0.00022573,2]
[364306032,1749064241201,-5000.0,0.0002261,2]
[364306034,1749064241210,-250.0,0.00022619,2]
[364306036,1749064241219,-752.24,0.00022637,7]
[364306038,1749064241227,-2342.15275744,0.00022659,7]
[364306040,1749064241237,-752.24,0.00022737,3]
[364306042,1749064241246,-206.0,0.0002274,2]
[364306044,1749064241255,-1968.38,0.00022745,3]
[364306045,1749064241264,-984.2,0.00022745,3]
[364306047,1749064241273,-492.1,0.00022745,3]
[364306049,1749064241282,-12668.79298183,0.0002275,3]